fUST/lending_fUST_20260114
["ID","MTS","AMOUNT","RATE_DAILY","PERIOD"]
[401790281,1768376521693,-91.04632892,0.00010169,2]
[401790282,1768376521728,-500.0,0.00010169,2]
[401790283,1768376521764,-355.09254607,0.00010169,2]
[401790284,1768376521800,-500.0,0.00010169,2]
[401790285,1768376521837,-500.0,0.00010169,2]
[401790286,1768376521873,-500.0,0.00010169,2]
[401790287,1768376521909,-500.0,0.00010169,2]
[401790288,1768376521945,-500.0,0.00010169,2]
[401790289,1768376521987,-500.0,0.00010169,2]
[401790290,1768376522027,-500.0,0.00010169,2]
[401790291,1768376522065,-500.0,0.00010169,2]
[401790292,1768376524246,-300.0,0.00010168,2]
[401790293,1768376524282,-300.0,0.00010168,2]
[401790294,1768376524319,-500.0,0.00010169,2]
[401790295,1768376524355,-500.0,0.00010169,2]
[401790296,1768376524392,-500.0,0.00010169,2]
[401790297,1768376524428,-500.0,0.00010169,2]
[401790298,1768376524469,-500.0,0.00010169,2]
[401790299,1768376524501,-500.0,0.00010169,2]
[401790300,1768376524536,-500.0,0.00010169,2]
[401790301,1768376524573,-500.0,0.00010169,2]
[401790302,1768376524607,-300.01,0.00010169,2]
[401790303,1768376524789,-199.99,0.00010169,2]
[401790304,1768376524835,-500.0,0.00010169,2]
[401790305,1768376524878,-500.0,0.00010169,2]
[401790306,1768376524921,-500.0,0.00010169,2]
[401790307,1768376524967,-500.0,0.00010169,2]
[401790308,1768376525016,-500.0,0.00010169,2]
[401790309,1768376525062,-500.0,0.00010169,2]
[401790310,1768376525108,-500.0,0.00010169,2]
[401790311,1768376525149,-500.0,0.00010169,2]
[401790312,1768376525193,-500.0,0.00010169,2]
[401790313,1768376525237,-100.03,0.00010169,2]
[401790314,1768376525472,-399.97,0.00010169,2]
[401790315,1768376525511,-500.0,0.00010169,2]
[401790316,1768376525553,-500.0,0.00010169,2]
[401790317,1768376525593,-500.0,0.00010169,2]
[401790318,1768376525634,-500.0,0.00010169,2]
[401790319,1768376525673,-500.0,0.00010169,2]
[401790320,1768376525760,-500.0,0.00010169,2]
[401790321,1768376525847,-500.0,0.00010169,2]
[401790322,1768376525937,-500.0,0.00010169,2]
[401790323,1768376526033,-500.0,0.00010169,2]
[401790324,1768376546476,951.79,5.877e-05,2]
[401790325,1768376546900,1903.57,6.157e-05,2]
[401790326,1768376547337,2855.36,6.437e-05,2]
[401790327,1768376547737,3807.14,6.717e-05,2]
[401790328,1768376548147,482.15,6.997e-05,2]
[401790329,1768376548235,4276.78,6.997e-05,2]
[401790330,1768376548590,5710.71,7.276e-05,2]
[401790331,1768376549013,12.52,7.556e-05,2]
[401790332,1768376549095,6649.98,7.556e-05,2]
[401790333,1768376549408,3350.03,7.836e-05,2]
[401790334,1768376549490,4264.25,7.836e-05,2]
[401790335,1768376549803,5735.76,8.116e-05,2]
[401790336,1768376549880,2830.31,8.116e-05,2]
[401790337,1768376550211,7169.7,8.396e-05,2]
[401790338,1768376550288,2348.16,8.396e-05,2]
[401790340,1768376623500,311.4,5.871e-05,2]
[401790341,1768376623904,622.79,6.15e-05,2]
[401790342,1768376624339,934.19,6.43e-05,2]
[401790343,1768376625278,1245.59,6.71e-05,2]
[401790344,1768376625659,1556.98,6.989e-05,2]
[401790345,1768376626110,1868.38,7.269e-05,2]
[401790346,1768376626517,1112.52,7.548e-05,2]
[401790347,1768376626598,1067.26,7.548e-05,2]
[401790348,1768376628530,2491.17,7.828e-05,2]
[401790349,1768376628940,2802.57,8.107e-05,2]
[401790350,1768376629459,3113.97,8.387e-05,2]
[401790351,1768376643819,525.04,8.246e-05,2]
[401790352,1768376643915,1800.00338658,8.246e-05,2]
[401790353,1768376673528,213.792756,6.882e-05,2]
[401790364,1768376700979,343.2,5.868e-05,2]
[401790365,1768376701404,686.4,6.147e-05,2]
[401790366,1768376701809,1029.59,6.427e-05,2]
[401790367,1768376702222,1372.79,6.706e-05,2]
[401790368,1768376702639,1715.99,6.985e-05,2]
[401790369,1768376702770,2838.24385742,9.176e-05,2]
[401790370,1768376702842,684.77600058,9.176e-05,2]
[401790371,1768376703054,2059.19,7.265e-05,2]
[401790372,1768376703551,2402.38,7.544e-05,2]
[401790373,1768376703941,2745.58,7.824e-05,2]
[401790374,1768376704334,2108.08399942,8.103e-05,2]
[401790375,1768376704431,980.69600058,8.103e-05,2]
[401790376,1768376704757,3431.98,8.382e-05,2]
[401790377,1768376745594,200.0,0.00011189,20]
[401790380,1768376779885,398.28,5.82e-05,2]
[401790381,1768376780977,796.55,6.097e-05,2]
[401790382,1768376781451,1194.83,6.375e-05,2]
[401790383,1768376781966,1593.11,6.652e-05,2]
[401790384,1768376782357,1604.56399942,6.929e-05,2]
[401790385,1768376782436,386.81600058,6.929e-05,2]
[401790386,1768376782777,2389.66,7.206e-05,2]
[401790387,1768376783191,2787.94,7.483e-05,2]
[401790388,1768376783905,3186.21,7.76e-05,2]
[401790389,1768376784177,1249.38399942,8.037e-05,2]
[401790390,1768376784259,2335.10600058,8.037e-05,2]
[401790391,1768376784580,3982.77,8.315e-05,2]
[401790396,1768376857260,305.81,5.848e-05,2]
[401790397,1768376857667,611.63,6.127e-05,2]
[401790398,1768376858158,917.44,6.405e-05,2]
[401790399,1768376858559,1223.26,6.684e-05,2]
[401790400,1768376858972,623.99399942,6.962e-05,2]
[401790401,1768376859071,905.07600058,6.962e-05,2]
[401790402,1768376859417,1834.89,7.241e-05,2]
[401790403,1768376859833,2140.7,7.519e-05,2]
[401790404,1768376860278,2446.52,7.798e-05,2]
[401790405,1768376860663,2672.82399942,8.076e-05,2]
[401790406,1768376860742,79.50600058,8.076e-05,2]
[401790407,1768376861086,3058.15,8.354e-05,2]
[401790408,1768376865278,200.0,0.00011189,20]
[401790411,1768376933716,249.79,6.122e-05,2]
[401790412,1768376934128,374.69,6.4e-05,2]
[401790413,1768376934533,499.59,6.678e-05,2]
[401790414,1768376934972,624.48,6.957e-05,2]
[401790415,1768376935398,749.38,7.235e-05,2]
[401790416,1768376935941,874.27,7.513e-05,2]
[401790417,1768376936191,999.17,7.791e-05,2]
[401790418,1768376936621,1124.07,8.07e-05,2]
[401790419,1768376937059,1248.96,8.348e-05,2]
[401790420,1768376937849,-228.85736207,0.00010069,2]
[401790421,1768376937929,-694.74979524,0.00010119,2]
[401790422,1768376938025,-300.0,0.00010168,2]
[401790423,1768376938103,-300.0,0.00010168,2]
[401790424,1768376938190,-300.0,0.00010168,2]
[401790425,1768376938270,-1200.0,0.00010168,2]
[401790426,1768376938349,-300.0,0.00010168,2]
[401790427,1768376938431,-1000.0,0.00010169,2]
[401790428,1768376938524,-352.79568538,0.00010169,2]
[401790429,1768376939119,-647.20431462,0.00010169,2]
[401790430,1768376939211,-1000.0,0.00010169,2]
[401790431,1768376939288,-1003.57198742,0.00010169,2]
[401790432,1768376944762,-300.0,0.00010168,2]
[401790433,1768376950360,-8758.93322506,0.00010169,2]
[401790434,1768376950479,-10000.01,0.00010169,2]
[401790435,1768376950681,-10000.01,0.00010169,2]
[401790437,1768376951135,-10000.01,0.00010169,2]
[401790438,1768376951362,-10000.01,0.00010169,2]
[401790439,1768376951627,-10000.01,0.00010169,2]
[401790440,1768376951844,-10000.01,0.00010169,2]
[401790442,1768376985358,200.0,0.00011177,20]
[401790443,1768377009651,156.81,7.923e-05,2]
[401790444,1768377010086,196.02,8.253e-05,2]
[401790445,1768377010526,235.22,8.583e-05,2]
[401790446,1768377010901,274.43,8.913e-05,2]
[401790447,1768377011293,313.63,9.243e-05,2]
[401790448,1768377011718,352.83,9.573e-05,2]
[401790449,1768377012147,392.04,9.903e-05,2]
[401790494,1768377032078,-300.0,0.00010068,2]
[401790495,1768377032089,-300.0,0.00010068,2]
[401790496,1768377032098,-300.0,0.00010068,2]
[401790498,1768377032108,-300.0,0.00010068,2]
[401790500,1768377032117,-561.0,0.00010068,2]
[401790502,1768377032127,-1200.0,0.00010068,2]
[401790504,1768377032136,-279784.18661062,0.00010069,2]
[401790539,1768377038165,-680.85479933,0.00010069,2]
[401790540,1768377038175,-9737.58524311,0.00010069,2]
[401790541,1768377038188,-710478.22814627,0.00010069,2]
[401790542,1768377038198,-392.24,0.000101,2]
[401790543,1768377038208,-30296.84801584,0.00010169,2]
[401790544,1768377038218,-151.88,0.00010169,2]
[401790545,1768377038229,-500.0,0.00010169,2]
[401790546,1768377038239,-50000.0,0.00010169,2]
[401790547,1768377038250,-500.0,0.00010169,2]
[401790548,1768377038261,-500.0,0.00010169,2]
[401790549,1768377038270,-500.0,0.00010169,2]
[401790550,1768377038280,-500.0,0.00010169,2]
[401790551,1768377038290,-500.0,0.00010169,2]
[401790552,1768377038300,-500.0,0.00010169,2]
[401790553,1768377038310,-500.0,0.00010169,2]
[401790554,1768377038320,-500.0,0.00010169,2]
[401790555,1768377038329,-500.0,0.00010169,2]
[401790556,1768377038339,-500.0,0.00010169,2]
[401790557,1768377038348,-500.0,0.00010169,2]
[401790558,1768377038358,-500.0,0.00010169,2]
[401790559,1768377038367,-500.0,0.00010169,2]
[401790560,1768377038377,-500.0,0.00010169,2]
[401790561,1768377038387,-550.0,0.00010169,2]
[401790562,1768377038396,-500.0,0.00010169,2]
[401790563,1768377038406,-500.0,0.00010169,2]
[401790564,1768377038416,-500.0,0.00010169,2]
[401790565,1768377038425,-500.0,0.00010169,2]
[401790566,1768377038435,-500.0,0.00010169,2]
[401790567,1768377038445,-500.0,0.00010169,2]
[401790568,1768377038455,-500.0,0.00010169,2]
[401790569,1768377038465,-500.0,0.00010169,2]
[401790570,1768377038474,-500.0,0.00010169,2]
[401790571,1768377038483,-500.0,0.00010169,2]
[401790572,1768377038493,-500.0,0.00010169,2]
[401790573,1768377038503,-500.0,0.00010169,2]
[401790574,1768377038512,-500.0,0.00010169,2]
[401790575,1768377038521,-500.0,0.00010169,2]
[401790576,1768377038531,-500.0,0.00010169,2]
[401790577,1768377038543,-500.0,0.00010169,2]
[401790578,1768377038553,-500.0,0.00010169,2]
[401790579,1768377038562,-500.0,0.00010169,2]
[401790580,1768377038571,-500.0,0.00010169,2]
[401790581,1768377038581,-500.0,0.00010169,2]
[401790582,1768377038591,-500.0,0.00010169,2]
[401790583,1768377038609,-500.0,0.00010169,2]
[401790584,1768377038625,-500.0,0.00010169,2]
[401790585,1768377038636,-500.0,0.00010169,2]
[401790586,1768377038647,-500.0,0.00010169,2]
[401790587,1768377038659,-500.0,0.00010169,2]
[401790588,1768377038669,-500.0,0.00010169,2]
[401790589,1768377038679,-500.0,0.00010169,2]
[401790590,1768377038690,-500.0,0.00010169,2]
[401790591,1768377038700,-500.0,0.00010169,2]
[401790592,1768377038711,-500.0,0.00010169,2]
[401790593,1768377038721,-500.0,0.00010169,2]
[401790594,1768377038731,-500.0,0.00010169,2]
[401790595,1768377038740,-500.0,0.00010169,2]
[401790596,1768377038750,-500.0,0.00010169,2]
[401790597,1768377038760,-500.0,0.00010169,2]
[401790598,1768377038770,-387.91899737,0.00010169,2]
[401790599,1768377038780,-500.0,0.00010169,2]
[401790600,1768377038790,-500.0,0.00010169,2]
[401790601,1768377038800,-500.0,0.00010169,2]
[401790602,1768377038811,-500.0,0.00010169,2]
[401790603,1768377038821,-500.0,0.00010169,2]
[401790604,1768377038831,-500.0,0.00010169,2]
[401790605,1768377038841,-500.0,0.00010169,2]
[401790606,1768377038851,-500.0,0.00010169,2]
[401790607,1768377038862,-500.0,0.00010169,2]
[401790608,1768377038871,-500.0,0.00010169,2]
[401790609,1768377038881,-574.77374204,0.00010169,2]
[401790610,1768377038891,-615.17148221,0.00010169,2]
[401790611,1768377038902,-615.17148221,0.00010169,2]
[401790612,1768377038912,-615.17148221,0.00010169,2]
[401790613,1768377038922,-615.17148221,0.00010169,2]
[401790614,1768377038932,-615.17148221,0.00010169,2]
[401790615,1768377038942,-615.17148221,0.00010169,2]
[401790616,1768377038952,-615.17148221,0.00010169,2]
[401790617,1768377038961,-615.17148221,0.00010169,2]
[401790618,1768377038972,-615.17148221,0.00010169,2]
[401790619,1768377038982,-615.17148221,0.00010169,2]
[401790620,1768377038993,-615.17148221,0.00010169,2]
[401790621,1768377039003,-615.17148221,0.00010169,2]
[401790622,1768377039013,-615.17148221,0.00010169,2]
[401790623,1768377039023,-615.17148221,0.00010169,2]
[401790624,1768377039034,-615.17148221,0.00010169,2]
[401790625,1768377039043,-615.17148221,0.00010169,2]
[401790626,1768377039053,-615.17148221,0.00010169,2]
[401790627,1768377039064,-615.17148221,0.00010169,2]
[401790628,1768377039075,-615.17148221,0.00010169,2]
[401790629,1768377039086,-615.17148221,0.00010169,2]
[401790630,1768377039096,-615.17148221,0.00010169,2]
[401790631,1768377039110,-615.17148221,0.00010169,2]
[401790632,1768377039121,-615.17148221,0.00010169,2]
[401790633,1768377039132,-615.17148221,0.00010169,2]
[401790634,1768377039142,-615.17148221,0.00010169,2]
[401790635,1768377039152,-615.17148221,0.00010169,2]
[401790636,1768377039162,-615.17148221,0.00010169,2]
[401790637,1768377039172,-615.17148221,0.00010169,2]
[401790638,1768377039182,-615.17148221,0.00010169,2]
[401790639,1768377039193,-615.17148221,0.00010169,2]
[401790640,1768377039203,-615.17148221,0.00010169,2]
[401790641,1768377039212,-615.17148221,0.00010169,2]
[401790642,1768377039224,-615.17148221,0.00010169,2]
[401790643,1768377039234,-615.17148221,0.00010169,2]
[401790644,1768377039244,-615.17148221,0.00010169,2]
[401790645,1768377039253,-615.17148221,0.00010169,2]
[401790646,1768377039263,-615.17148221,0.00010169,2]
[401790647,1768377039272,-615.17148221,0.00010169,2]
[401790648,1768377039281,-615.17148221,0.00010169,2]
[401790649,1768377039291,-615.17148221,0.00010169,2]
[401790650,1768377039301,-615.17148221,0.00010169,2]
[401790651,1768377039312,-615.17148221,0.00010169,2]
[401790652,1768377039321,-615.17148221,0.00010169,2]
[401790653,1768377039331,-615.17148221,0.00010169,2]
[401790654,1768377039341,-615.17148221,0.00010169,2]
[401790655,1768377039351,-615.17148221,0.00010169,2]
[401790656,1768377039360,-615.17148221,0.00010169,2]
[401790657,1768377039371,-615.17148221,0.00010169,2]
[401790658,1768377039380,-615.17148221,0.00010169,2]
[401790659,1768377039390,-615.17148221,0.00010169,2]
[401790660,1768377039400,-500.0,0.00010269,2]
[401790661,1768377039411,-30000.0,0.00010305,2]
[401790662,1768377039421,-311.85701,0.00010305,2]
[401790663,1768377039430,-1957.856,0.00010364,2]
[401790664,1768377039440,-2230.315306,0.00010364,2]
[401790665,1768377039450,-500.0,0.00010373,2]
[401790666,1768377039460,-500.0,0.00010373,2]
[401790667,1768377039470,-500.0,0.00010373,2]
[401790668,1768377039479,-500.0,0.00010373,2]
[401790669,1768377039489,-500.0,0.00010373,2]
[401790670,1768377039499,-500.0,0.00010373,2]
[401790671,1768377039508,-500.0,0.00010373,2]
[401790672,1768377039518,-500.0,0.00010373,2]
[401790673,1768377039528,-500.0,0.00010373,2]
[401790674,1768377039538,-500.0,0.00010373,2]
[401790675,1768377039547,-500.0,0.00010373,2]
[401790676,1768377039556,-500.0,0.00010373,2]
[401790677,1768377039566,-500.0,0.00010373,2]
[401790678,1768377039575,-500.0,0.00010373,2]
[401790679,1768377039584,-500.0,0.00010373,2]
[401790680,1768377039594,-500.0,0.00010373,2]
[401790681,1768377039603,-151.0,0.00010373,2]
[401790682,1768377039620,-500.0,0.00010373,2]
[401790683,1768377039630,-151.0,0.00010373,2]
[401790684,1768377039640,-151.0,0.00010373,2]
[401790685,1768377039650,-151.0,0.00010373,2]
[401790686,1768377039659,-151.0,0.00010373,2]
[401790687,1768377039668,-151.0,0.00010373,2]
[401790688,1768377039678,-151.0,0.00010373,2]
[401790689,1768377039689,-175.14541574,0.00010373,2]
[401790690,1768377039699,-168.3888056,0.00010373,2]
[401790691,1768377039710,-174.61919141,0.00010373,2]
[401790692,1768377039719,-181.08010149,0.00010373,2]
[401790693,1768377039728,-187.78006525,0.00010373,2]
[401790694,1768377039738,-461.67526834,0.00010373,2]
[401790695,1768377039748,-194.72792766,0.00010373,2]
[401790696,1768377039757,-201.93286099,0.00010373,2]
[401790697,1768377039766,-209.40437684,0.00010373,2]
[401790698,1768377039776,-217.15233878,0.00010373,2]
[401790699,1768377039786,-225.18697532,0.00010373,2]
[401790700,1768377039796,-2030.296672,0.00010419,2]
[401790701,1768377039805,-151.88,0.00010443,2]
[401790702,1768377039814,-500.0,0.00010443,2]
[401790703,1768377039824,-2105.41764886,0.00010474,2]
[401790704,1768377039833,-300.0,0.00010475,2]
[401790705,1768377039842,-300.0,0.00010475,2]
[401790706,1768377039851,-300.0,0.00010475,2]
[401790707,1768377039861,-300.0,0.00010475,2]
[401790708,1768377039871,-300.0,0.00010475,2]
[401790709,1768377039880,-300.0,0.00010475,2]
[401790711,1768377039889,-300.0,0.00010475,2]
[401790712,1768377039898,-300.0,0.00010475,2]
[401790714,1768377039907,-300.0,0.00010475,2]
[401790715,1768377039917,-300.0,0.00010475,2]
[401790716,1768377039927,-300.0,0.00010475,2]
[401790717,1768377039936,-300.0,0.00010475,2]
[401790718,1768377039946,-300.0,0.00010475,2]
[401790719,1768377039955,-300.0,0.00010475,2]
[401790720,1768377039965,-300.0,0.00010475,2]
[401790721,1768377039975,-600.0,0.00010475,2]
[401790722,1768377039984,-2183.31810187,0.00010529,2]
[401790723,1768377039994,-2264.10087164,0.00010584,2]
[401790724,1768377040003,-2116.0,0.000106,2]
[401790725,1768377040013,-2347.87260389,0.00010639,2]
[401790726,1768377040023,-2434.74389024,0.00010694,2]
[401790728,1768377040033,-500.0,0.00010716,2]
[401790730,1768377040043,-500.0,0.00010716,2]
[401790732,1768377040052,-500.0,0.00010716,2]
[401790733,1768377040062,-500.0,0.00010716,2]
[401790735,1768377040071,-500.0,0.00010716,2]
[401790736,1768377040080,-500.0,0.00010716,2]
[401790737,1768377040090,-500.0,0.00010716,2]
[401790738,1768377040099,-500.0,0.00010716,2]
[401790740,1768377040109,-288.40469912,0.00010716,2]
[401790742,1768377040119,-500.0,0.00010716,2]
[401790743,1768377040128,-152.26387906,0.00010716,2]
[401790745,1768377040137,-500.0,0.00010716,2]
[401790747,1768377040146,-500.0,0.00010716,2]
[401790749,1768377040156,-500.0,0.00010716,2]
[401790751,1768377040165,-500.0,0.00010716,2]
[401790752,1768377040175,-500.0,0.00010716,2]
[401790754,1768377040184,-291.14675922,0.00010716,2]
[401790756,1768377040194,-870.0,0.00010716,2]
[401790758,1768377040203,-500.0,0.00010716,2]
[401790760,1768377040213,-500.0,0.00010716,2]
[401790762,1768377040223,-431.0,0.00010716,2]
[401790764,1768377040232,-500.0,0.00010717,2]
[401790766,1768377040242,-151.89,0.00010717,2]
[401790768,1768377040251,-366.70418556,0.00010749,2]
[401790770,1768377040260,-500.0,0.00010853,2]
[401790772,1768377040270,-500.0,0.00010853,2]
[401790774,1768377040280,-500.0,0.00010853,2]
[401790776,1768377040290,-500.0,0.00010853,2]
[401790778,1768377040300,-500.0,0.00010853,2]
[401790780,1768377040309,-500.0,0.00010853,2]
[401790782,1768377040319,-500.0,0.00010853,2]
[401790784,1768377040329,-500.0,0.00010853,2]
[401790786,1768377040338,-500.0,0.00010853,2]
[401790788,1768377040349,-500.0,0.00010853,2]
[401790791,1768377040359,-500.0,0.00010853,2]
[401790793,1768377040368,-500.0,0.00010853,2]
[401790794,1768377040378,-500.0,0.00010853,2]
[401790796,1768377040387,-283.83301289,0.00010853,2]
[401790798,1768377040397,-500.0,0.00010853,2]
[401790801,1768377040407,-870.0,0.00010853,2]
[401790802,1768377040416,-500.0,0.00010853,2]
[401790804,1768377040427,-500.0,0.00010853,2]
[401790807,1768377040437,-431.0,0.00010853,2]
[401790809,1768377040446,-31110.0,0.00010853,2]
[401790811,1768377040456,-12735.37835459,0.00010874,2]
[401790813,1768377040465,-2312.83697232,0.00010912,2]
[401790815,1768377040475,-478.75725327,0.00010921,2]
[401790817,1768377040486,-946.8489754,0.00010959,2]
[401790819,1768377040495,-500.0,0.0001099,2]
[401790821,1768377040504,-500.88218581,0.0001099,2]
[401790823,1768377040514,-500.0,0.0001099,2]
[401790825,1768377040524,-500.0,0.0001099,2]
[401790827,1768377040533,-500.0,0.0001099,2]
[401790829,1768377040543,-500.0,0.0001099,2]
[401790831,1768377040552,-500.0,0.0001099,2]
[401790833,1768377040561,-500.0,0.0001099,2]
[401790835,1768377040570,-500.0,0.0001099,2]
[401790837,1768377040579,-500.0,0.0001099,2]
[401790839,1768377040588,-500.0,0.0001099,2]
[401790841,1768377040598,-240.44633049,0.0001099,2]
[401790843,1768377040607,-500.0,0.0001099,2]
[401790845,1768377040618,-500.0,0.0001099,2]
[401790847,1768377040628,-870.0,0.0001099,2]
[401790849,1768377040638,-580.25340699,0.0001099,2]
[401790851,1768377040647,-500.0,0.0001099,2]
[401790853,1768377040657,-431.0,0.0001099,2]
[401790855,1768377040667,-500.0,0.00010991,2]
[401790857,1768377040676,-420.0,0.00011074,2]
[401790859,1768377040686,-420.0,0.00011074,2]
[401790861,1768377040695,-420.0,0.00011074,2]
[401790863,1768377040704,-420.0,0.00011074,2]
[401790865,1768377040714,-1680.0,0.00011075,2]
[401790867,1768377040724,-366.99002628,0.00011127,2]
[401790869,1768377040733,-500.0,0.00011127,2]
[401790871,1768377040743,-450.0,0.00011127,2]
[401790873,1768377040752,-500.0,0.00011127,2]
[401790875,1768377040762,-500.0,0.00011127,2]
[401790877,1768377040772,-407.49285757,0.00011127,2]
[401790892,1768377040903,-500.0,0.00011127,2]
[401790894,1768377040912,-500.0,0.00011127,2]
[401790896,1768377040922,-500.0,0.00011127,2]
[401790898,1768377040931,-500.0,0.00011127,2]
[401790900,1768377040940,-870.0,0.00011127,2]
[401790902,1768377040950,-500.0,0.00011127,2]
[401790904,1768377040960,-431.0,0.00011127,2]
[401790906,1768377040969,-2116.0,0.000112,2]
[401790908,1768377040978,-450.0,0.00011264,2]
[401790910,1768377040988,-233.98664865,0.00011264,2]
[401790912,1768377040997,-500.0,0.00011264,2]
[401790914,1768377041007,-500.0,0.00011264,2]
[401790916,1768377041016,-500.0,0.00011264,2]
[401790918,1768377041026,-300.0,0.00011264,2]
[401790920,1768377041035,-500.0,0.00011264,2]
[401790922,1768377041044,-870.0,0.00011264,2]
[401790924,1768377041054,-500.0,0.00011264,2]
[401790926,1768377041063,-431.0,0.00011264,2]
[401790928,1768377041073,-500.0,0.00011265,2]
[401790930,1768377041083,-4077.6343,0.00011366,2]
[401790932,1768377041092,-151.0,0.000114,2]
[401790934,1768377041101,-500.0,0.00011401,2]
[401790936,1768377041110,-175.48644191,0.00011401,2]
[401790938,1768377041119,-200.0,0.00011401,2]
[401790940,1768377041127,-622.17092249,0.00011401,2]
[401790942,1768377041136,-200.0,0.00011401,2]
[401790944,1768377041145,-500.0,0.00011401,2]
[401790946,1768377041155,-250.0,0.00011401,2]
[401790948,1768377041164,-870.0,0.00011401,2]
[401790950,1768377041174,-151.23570132,0.00011401,2]
[401790951,1768377041183,-500.0,0.00011401,2]
[401790953,1768377041192,-431.0,0.00011401,2]
[401790955,1768377041202,-22583.07294621,0.00011401,2]
[401790957,1768377041211,-2398.4119403,0.0001146,2]
[401790959,1768377041221,-496.47127164,0.00011469,2]
[401790961,1768377041231,-213.792756,0.0001147,2]
[401790963,1768377041240,-720.0,0.00011522,2]
[401790965,1768377041249,-500.0,0.00011538,2]
[401790967,1768377041260,-500.0,0.00011538,2]
[401790969,1768377041269,-870.0,0.00011538,2]
[401790971,1768377041278,-428.44929732,0.00011538,2]
[401790973,1768377041288,-431.0,0.00011538,2]
[401790975,1768377041297,-500.0,0.00011539,2]
[401790977,1768377041306,-410.85131619,0.00011675,2]
[401790979,1768377041317,-870.0,0.00011675,2]
[401790981,1768377041326,-431.0,0.00011675,2]
[401790984,1768377041335,-2116.0,0.000117,2]
[401790985,1768377041345,-151.0,0.000117,2]
[401790987,1768377041354,-210.35,0.00011752,2]
[401790990,1768377041363,-870.0,0.00011812,2]
[401790991,1768377041373,-431.0,0.00011812,2]
[401790993,1768377041382,-500.0,0.00011813,2]
[401790995,1768377041392,-151.0,0.000119,2]
[401790997,1768377041402,-870.0,0.00011949,2]
[401790999,1768377041411,-431.0,0.00011949,2]
[401791001,1768377041420,-2487.15318209,0.00012008,2]
[401791003,1768377041429,-514.84070869,0.00012017,2]
[401791005,1768377041438,-803.40866321,0.00012069,2]
[401791008,1768377041448,-870.0,0.00012086,2]
[401791010,1768377041457,-431.0,0.00012086,2]
[401791012,1768377041466,-500.0,0.00012087,2]
[401791013,1768377041475,-476.29,0.00012088,2]
[401791016,1768377041484,-151.0,0.000121,2]
[401791017,1768377041494,-587.0,0.00012181,2]
[401791019,1768377041503,-204.0,0.00012181,2]
[401791021,1768377041512,-587.0,0.00012181,2]
[401791023,1768377041521,-587.0,0.00012181,2]
[401791024,1768377041530,-2351.0,0.00012182,2]
[401791025,1768377041539,-2116.0,0.000122,2]
[401791026,1768377041548,-870.0,0.00012223,2]
[401791027,1768377041558,-431.0,0.00012223,2]
[401791028,1768377041568,-151.0,0.000123,2]
[401791029,1768377041578,-4823.36,0.00012329,2]
[401791030,1768377041587,-4696.91,0.00012329,2]
[401791031,1768377041597,-3914.09,0.00012329,2]
[401791032,1768377041607,-3261.75,0.00012329,2]
[401791033,1768377041619,-2718.12,0.00012329,2]
[401791034,1768377041629,-2265.1,0.00012329,2]
[401791035,1768377041639,-1887.58,0.00012329,2]
[401791036,1768377041649,-1572.99,0.00012329,2]
[401791037,1768377041658,-1310.82,0.00012329,2]